fUST/lending_fUST_20251017
["ID","MTS","AMOUNT","RATE_DAILY","PERIOD"]
[391611333,1760706633274,-500.0,0.00030136,5]
[391611334,1760706633284,-627.27537848,0.00030136,5]
[391611335,1760706633294,-500.0,0.00030136,5]
[391611336,1760706633303,-500.0,0.00030136,5]
[391611337,1760706633312,-500.0,0.00030136,5]
[391611338,1760706633322,-1018.98,0.00030136,5]
[391611339,1760706633333,-500.0,0.00030136,5]
[391611340,1760706633342,-519.55129232,0.00030136,5]
[391611341,1760706633351,-163.56522082,0.00030136,5]
[391611380,1760706638350,-336.43477918,0.00030136,5]
[391611382,1760706638360,-737.07,0.00030136,5]
[391611384,1760706638370,-745.77,0.00030136,5]
[391611386,1760706638380,-500.0,0.00030136,5]
[391611388,1760706638389,-500.0,0.00030136,5]
[391611390,1760706638400,-500.0,0.00030136,3]
[391611393,1760706638409,-500.0,0.00030136,5]
[391611396,1760706638419,-192.00263077,0.00030136,5]
[391611399,1760706638428,-500.0,0.00030136,2]
[391611402,1760706638438,-501.98131213,0.00030173,5]
[391611404,1760706638448,-1372.96627048,0.00030242,2]
[391611406,1760706638458,-500.0,0.00030409,5]
[391611408,1760706638470,-500.0,0.00030409,5]
[391611410,1760706638479,-893.61,0.0003041,5]
[391611412,1760706638488,-2481.05269213,0.0003041,5]
[391611414,1760706638500,-3671.98730787,0.0003041,5]
[391611416,1760706638509,-523.99,0.0003041,5]
[391611418,1760706638519,-500.0,0.0003041,5]
[391611420,1760706638528,-500.0,0.0003041,5]
[391611422,1760706638537,-500.0,0.0003041,5]
[391611424,1760706638547,-704.47129509,0.0003041,5]
[391611426,1760706638559,-129.50870491,0.0003041,5]
[391611428,1760706638568,-833.33,0.0003041,5]
[391611430,1760706638578,-506.90729458,0.0003041,5]
[391611432,1760706638587,-518.06203284,0.0003041,5]
[391611434,1760706638597,-500.0,0.0003041,5]
[391611436,1760706638607,-500.0,0.0003041,5]
[391611438,1760706638616,-656.54,0.0003041,5]
[391611440,1760706638626,-314.74434668,0.0003041,5]
[391611442,1760706638635,-500.0,0.0003041,5]
[391611444,1760706638644,-292.97188739,0.0003041,5]
[391611446,1760706638653,-500.0,0.0003041,5]
[391611448,1760706638662,-500.0,0.0003041,5]
[391611450,1760706638672,-500.0,0.0003041,5]
[391611452,1760706638681,-500.0,0.0003041,5]
[391611454,1760706638690,-623.69,0.0003041,5]
[391611456,1760706638699,-500.0,0.0003041,5]
[391611458,1760706638708,-500.0,0.0003041,5]
[391611460,1760706638719,-500.0,0.0003041,5]
[391611462,1760706638729,-500.0,0.0003041,2]
[391611464,1760706638738,-908.48,0.0003041,5]
[391611466,1760706638748,-500.0,0.0003041,5]
[391611468,1760706638757,-665.48,0.0003041,5]
[391611470,1760706638766,-500.0,0.0003041,5]
[391611472,1760706638776,-1068.82,0.0003041,5]
[391611474,1760706638785,-371.29463615,0.0003041,5]
[391611476,1760706638795,-500.0,0.0003041,5]
[391611478,1760706638804,-500.0,0.0003041,5]
[391611480,1760706638813,-500.0,0.0003041,5]
[391611482,1760706638822,-500.0,0.0003041,5]
[391611484,1760706638835,-500.0,0.0003041,5]
[391611486,1760706638844,-2609.4,0.0003041,5]
[391611488,1760706638853,-500.0,0.0003041,5]
[391611490,1760706638862,-500.0,0.0003041,5]
[391611492,1760706638871,-500.0,0.0003041,5]
[391611494,1760706638881,-500.0,0.0003041,5]
[391611495,1760706638890,-500.0,0.0003041,5]
[391611497,1760706638900,-500.0,0.0003041,5]
[391611499,1760706638909,-530.48,0.0003041,5]
[391611501,1760706638920,-500.0,0.0003041,5]
[391611503,1760706638931,-500.0,0.0003041,5]
[391611505,1760706638940,-673.78,0.0003041,5]
[391611507,1760706638951,-500.0,0.0003041,5]
[391611509,1760706638961,-586.61,0.0003041,5]
[391611511,1760706638973,-500.0,0.0003041,5]
[391611513,1760706638983,-500.0,0.0003041,5]
[391611515,1760706638992,-500.0,0.0003041,5]
[391611517,1760706639005,-1000.0,0.0003041,2]
[391611519,1760706639014,-6178.77,0.0003041,5]
[391611521,1760706639024,-500.0,0.0003041,5]
[391611523,1760706639034,-500.0,0.0003041,5]
[391611525,1760706639044,-500.0,0.0003041,5]
[391611527,1760706639056,-500.0,0.0003041,5]
[391611530,1760706639065,-500.0,0.0003041,5]
[391611532,1760706639076,-1018.98,0.0003041,5]
[391611533,1760706639085,-500.0,0.0003041,5]
[391611535,1760706639095,-500.0,0.0003041,5]
[391611537,1760706639105,-737.07,0.0003041,5]
[391611540,1760706639116,-745.77,0.0003041,5]
[391611541,1760706639125,-500.0,0.0003041,5]
[391611543,1760706639135,-500.0,0.0003041,5]
[391611545,1760706639145,-500.0,0.0003041,3]
[391611547,1760706639155,-502.05269416,0.0003041,5]
[391611550,1760706639165,-2574.37054032,0.00030547,2]
[391611551,1760706639175,-500.51536952,0.00030573,5]
[391611554,1760706639186,-500.0,0.00030573,5]
[391611556,1760706639196,-352.64,0.00030584,5]
[391611557,1760706639206,-2719.37003951,0.00030584,2]
[391611559,1760706639216,-443.96,0.00030588,3]
[391611561,1760706639226,-221.98,0.00030588,3]
[391611563,1760706639235,-665.96,0.00030588,3]
[391611565,1760706639245,-76053.4308292,0.00030598,2]
[391611568,1760706639255,-500.0,0.00030608,5]
[391611570,1760706639265,-500.0,0.00030623,2]
[391611571,1760706639275,-500.0,0.00030624,5]
[391611573,1760706639284,-213.79316241,0.00030624,5]
[391611576,1760706639294,-500.0,0.00030624,5]
[391611577,1760706639303,-501.25144548,0.00030624,5]
[391611579,1760706639312,-500.0,0.00030624,5]
[391611581,1760706639321,-500.0,0.00030624,5]
[391611583,1760706639331,-500.0,0.00030624,5]
[391611585,1760706639340,-1000.0,0.00030624,2]
[391611587,1760706639351,-500.0,0.00030624,5]
[391611589,1760706639361,-241.11020382,0.00030624,5]
[391611591,1760706639370,-500.0,0.00030624,5]
[391611593,1760706639380,-500.0,0.00030624,5]
[391611596,1760706639389,-500.0,0.00030624,5]
[391611597,1760706639399,-500.0,0.00030624,5]
[391611600,1760706639408,-500.0,0.00030624,5]
[391611601,1760706639417,-1250.0,0.00030624,5]
[391611603,1760706639427,-500.0,0.00030673,5]
[391611605,1760706639435,-500.0,0.00030673,5]
[391611607,1760706639445,-501.17934736,0.00030673,5]
[391611609,1760706639454,-500.0,0.00030673,5]
[391611611,1760706639463,-500.0,0.00030673,5]
[391611613,1760706639472,-500.0,0.00030673,5]
[391611615,1760706639482,-500.0,0.00030673,5]
[391611617,1760706639491,-500.0,0.00030673,5]
[391611619,1760706639500,-76053.4308292,0.00030674,2]
[391611621,1760706639511,-500.0,0.00030683,5]
[391611623,1760706639520,-500.0,0.00030683,5]
[391611625,1760706639529,-500.0,0.00030683,5]
[391611627,1760706639539,-893.61,0.00030684,5]
[391611629,1760706639548,-6153.04,0.00030684,5]
[391611631,1760706639557,-523.99,0.00030684,5]
[391611633,1760706639566,-500.0,0.00030684,5]
[391611635,1760706639575,-509.66348862,0.00030684,5]
[391611637,1760706639585,-500.0,0.00030684,5]
[391611639,1760706639594,-833.98,0.00030684,5]
[391611641,1760706639604,-833.33,0.00030684,5]
[391611643,1760706639613,-597.1313174,0.00030684,5]
[391611645,1760706639623,-500.0,0.00030684,5]
[391611647,1760706639632,-656.54,0.00030684,5]
[391611649,1760706639641,-630.049449,0.00030684,5]
[391611650,1760706639652,-500.0,0.00030684,5]
[391611652,1760706639661,-500.0,0.00030684,5]
[391611654,1760706639671,-500.0,0.00030684,5]
[391611656,1760706639681,-500.0,0.00030684,5]
[391611659,1760706639690,-623.69,0.00030684,5]
[391611661,1760706639700,-500.0,0.00030684,5]
[391611662,1760706639709,-500.0,0.00030684,5]
[391611664,1760706639718,-500.0,0.00030684,5]
[391611666,1760706639727,-500.0,0.00030684,2]
[391611668,1760706639736,-908.48,0.00030684,5]
[391611670,1760706639746,-500.0,0.00030684,5]
[391611672,1760706639756,-665.48,0.00030684,5]
[391611674,1760706639765,-500.0,0.00030684,5]
[391611676,1760706639773,-1068.82,0.00030684,5]
[391611678,1760706639783,-500.0,0.00030684,5]
[391611680,1760706639792,-500.0,0.00030684,5]
[391611682,1760706639801,-500.0,0.00030684,5]
[391611684,1760706639810,-500.0,0.00030684,5]
[391611686,1760706639819,-515.98122804,0.00030684,5]
[391611688,1760706639828,-2609.4,0.00030684,5]
[391611690,1760706639838,-500.0,0.00030684,5]
[391611692,1760706639847,-500.0,0.00030684,5]
[391611694,1760706639858,-500.0,0.00030684,5]
[391611696,1760706639868,-510.58414207,0.00030684,5]
[391611698,1760706639877,-300.40955326,0.00030684,5]
[391611700,1760706639886,-500.0,0.00030684,5]
[391611702,1760706639896,-530.48,0.00030684,5]
[391611703,1760706639905,-500.0,0.00030684,5]
[391611704,1760706639915,-500.0,0.00030684,5]
[391611705,1760706639929,-673.78,0.00030684,5]
[391611706,1760706639938,-500.0,0.00030684,5]
[391611707,1760706639948,-586.61,0.00030684,5]
[391611708,1760706639958,-500.0,0.00030684,5]
[391611709,1760706639969,-500.0,0.00030684,5]
[391611710,1760706639979,-500.0,0.00030684,5]
[391611711,1760706639988,-1000.0,0.00030684,2]
[391611712,1760706639999,-6178.77,0.00030684,5]
[391611713,1760706640009,-500.0,0.00030684,5]
[391611714,1760706640019,-500.0,0.00030684,5]
[391611715,1760706640028,-500.0,0.00030684,5]
[391611716,1760706640038,-500.0,0.00030684,5]
[391611717,1760706640136,-500.0,0.00030684,5]
[391611718,1760706640146,-1018.98,0.00030684,5]
[391611719,1760706640158,-508.28451569,0.00030684,5]
[391611721,1760706640168,-500.0,0.00030684,5]
[391611723,1760706640177,-737.07,0.00030684,5]
[391611725,1760706640186,-745.77,0.00030684,5]
[391611727,1760706640195,-500.0,0.00030684,5]
[391611729,1760706640205,-500.0,0.00030684,5]
[391611731,1760706640214,-500.0,0.00030684,3]
[391611733,1760706640224,-500.0,0.00030897,2]
[391611735,1760706640233,-397.68581499,0.00030898,5]
[391611736,1760706640242,-500.0,0.00030898,5]
[391611738,1760706640252,-513.27542253,0.00030898,5]
[391611740,1760706640261,-500.0,0.00030898,5]
[391611742,1760706640270,-500.0,0.00030898,5]
[391611744,1760706640279,-1000.0,0.00030898,2]
[391611746,1760706640289,-500.0,0.00030898,5]
[391611748,1760706640298,-500.0,0.00030898,5]
[391611750,1760706640308,-500.0,0.00030898,5]
[391611752,1760706640318,-500.0,0.00030898,5]
[391611754,1760706640327,-500.0,0.00030898,5]
[391611756,1760706640337,-1250.0,0.00030898,5]
[391611758,1760706640347,-500.0,0.00030947,5]
[391611760,1760706640357,-500.0,0.00030947,5]
[391611762,1760706640366,-500.0,0.00030947,5]
[391611764,1760706640375,-558.28732903,0.00030947,5]
[391611766,1760706640385,-76053.4308292,0.00030948,2]
[391611768,1760706640394,-500.0,0.00030957,5]
[391611770,1760706640403,-893.61,0.00030958,5]
[391611772,1760706640413,-6153.04,0.00030958,5]
[391611774,1760706640423,-523.99,0.00030958,5]
[391611776,1760706640432,-500.0,0.00030958,5]
[391611778,1760706640442,-500.0,0.00030958,5]
[391611780,1760706640451,-833.98,0.00030958,5]
[391611782,1760706640460,-833.33,0.00030958,5]
[391611784,1760706640471,-500.0,0.00030958,5]
[391611786,1760706640481,-656.54,0.00030958,5]
[391611788,1760706640490,-500.0,0.00030958,5]
[391611790,1760706640499,-500.0,0.00030958,5]
[391611792,1760706640508,-500.0,0.00030958,5]
[391611794,1760706640518,-500.0,0.00030958,5]
[391611796,1760706640527,-623.69,0.00030958,5]
[391611798,1760706640536,-500.0,0.00030958,5]
[391611799,1760706640545,-500.0,0.00030958,5]
[391611801,1760706640554,-500.0,0.00030958,5]
[391611803,1760706640563,-500.0,0.00030958,2]
[391611805,1760706640573,-908.48,0.00030958,5]
[391611807,1760706640582,-500.0,0.00030958,5]
[391611809,1760706640591,-665.48,0.00030958,5]
[391611811,1760706640600,-500.0,0.00030958,5]
[391611813,1760706640609,-1068.82,0.00030958,5]
[391611815,1760706640618,-500.0,0.00030958,5]
[391611817,1760706640628,-500.0,0.00030958,5]
[391611819,1760706640637,-500.0,0.00030958,5]
[391611821,1760706640646,-516.41584702,0.00030958,5]
[391611823,1760706640655,-2609.4,0.00030958,5]
[391611825,1760706640664,-500.0,0.00030958,5]
[391611827,1760706640673,-500.0,0.00030958,5]
[391611829,1760706640683,-500.0,0.00030958,5]
[391611831,1760706640692,-500.0,0.00030958,5]
[391611833,1760706640701,-530.48,0.00030958,5]
[391611835,1760706640710,-500.0,0.00030958,5]
[391611837,1760706640721,-673.78,0.00030958,5]
[391611839,1760706640730,-500.0,0.00030958,5]
[391611842,1760706640751,-586.61,0.00030958,5]
[391611844,1760706640761,-500.0,0.00030958,5]
[391611846,1760706640771,-500.0,0.00030958,5]
[391611848,1760706640781,-505.84514754,0.00030958,5]
[391611850,1760706640790,-1000.0,0.00030958,2]
[391611852,1760706640800,-6178.77,0.00030958,5]
[391611854,1760706640810,-500.0,0.00030958,5]
[391611856,1760706640820,-500.0,0.00030958,5]
[391611858,1760706640832,-500.0,0.00030958,5]
[391611860,1760706640841,-500.0,0.00030958,5]
[391611862,1760706640850,-500.0,0.00030958,5]
[391611864,1760706640860,-1018.98,0.00030958,5]
[391611866,1760706640870,-500.0,0.00030958,5]
[391611868,1760706640879,-737.07,0.00030958,5]
[391611870,1760706640889,-745.77,0.00030958,5]
[391611872,1760706640898,-500.0,0.00030958,5]
[391611874,1760706640907,-500.0,0.00030958,5]
[391611876,1760706640920,-500.0,0.00030958,3]
[391611878,1760706640932,-160.0,0.00030981,2]
[391611880,1760706640941,-500.0,0.00031112,2]
[391611882,1760706640951,-972.09349465,0.00031121,5]
[391611884,1760706640961,-2839.32192172,0.00031122,2]
[391611886,1760706640971,-500.0,0.00031172,5]
[391611888,1760706640981,-505.18645604,0.00031172,5]
[391611890,1760706640990,-1000.0,0.00031172,2]
[391611892,1760706641000,-500.0,0.00031172,5]
[391611894,1760706641009,-500.0,0.00031172,5]
[391611896,1760706641018,-500.0,0.00031172,5]
[391611898,1760706641028,-500.0,0.00031172,5]
[391611900,1760706641038,-1250.0,0.00031172,5]
[391611902,1760706641048,-801.67727931,0.00031221,5]
[391611904,1760706641060,-1000.0,0.00031221,5]
[391611906,1760706641070,-76053.4308292,0.00031222,2]
[391611908,1760706641079,-150.97,0.00031228,15]
[391611910,1760706641089,-500.0,0.00031231,5]
[391611912,1760706641099,-893.61,0.00031232,5]
[391611914,1760706641108,-6153.04,0.00031232,5]
[391611916,1760706641118,-523.99,0.00031232,5]
[391611918,1760706641128,-500.0,0.00031232,5]
[391611920,1760706641138,-500.0,0.00031232,5]
[391611922,1760706641148,-833.98,0.00031232,5]
[391611924,1760706641158,-833.33,0.00031232,5]
[391611926,1760706641168,-656.54,0.00031232,5]
[391611928,1760706641177,-333.25732107,0.00031232,5]
[391611930,1760706641187,-500.0,0.00031232,5]
[391611932,1760706641197,-500.0,0.00031232,5]
[391611934,1760706641207,-500.0,0.00031232,5]
[391611936,1760706641216,-623.69,0.00031232,5]
[391611938,1760706641226,-500.0,0.00031232,5]
[391611940,1760706641236,-500.0,0.00031232,5]
[391611942,1760706641245,-500.0,0.00031232,5]
[391611944,1760706641255,-500.0,0.00031232,2]
[391611946,1760706641264,-908.48,0.00031232,5]
[391611948,1760706641274,-500.0,0.00031232,5]
[391611950,1760706641283,-665.48,0.00031232,5]
[391611951,1760706641292,-500.0,0.00031232,5]
[391611953,1760706641302,-1068.82,0.00031232,5]
[391611955,1760706641311,-500.0,0.00031232,5]
[391611957,1760706641320,-500.0,0.00031232,5]
[391611959,1760706641330,-500.0,0.00031232,5]
[391611962,1760706641341,-2609.4,0.00031232,5]
[391611963,1760706641351,-508.29123297,0.00031232,5]
[391611965,1760706641360,-500.0,0.00031232,5]
[391611967,1760706641370,-500.0,0.00031232,5]
[391611969,1760706641379,-500.0,0.00031232,5]
[391611971,1760706641389,-530.48,0.00031232,5]
[391611973,1760706641398,-500.0,0.00031232,5]
[391611975,1760706641408,-673.78,0.00031232,5]
[391611977,1760706641417,-500.0,0.00031232,5]
[391611979,1760706641427,-586.61,0.00031232,5]
[391611981,1760706641436,-500.0,0.00031232,5]
[391611983,1760706641446,-500.0,0.00031232,5]
[391611985,1760706641455,-1000.0,0.00031232,2]
[391611987,1760706641465,-6178.77,0.00031232,5]
[391611989,1760706641474,-476.41650406,0.00031232,5]
[391611991,1760706641484,-500.0,0.00031232,5]
[391611993,1760706641494,-500.0,0.00031232,5]
[391611995,1760706641503,-500.0,0.00031232,5]
[391611997,1760706641513,-500.0,0.00031232,5]
[391611999,1760706641522,-1018.98,0.00031232,5]
[391612001,1760706641532,-500.0,0.00031232,5]
[391612003,1760706641542,-737.07,0.00031232,5]
[391612005,1760706641552,-745.77,0.00031232,5]
[391612007,1760706641561,-500.0,0.00031232,5]
[391612009,1760706641571,-500.0,0.00031232,5]
[391612011,1760706641581,-500.0,0.00031232,3]
[391612013,1760706641590,-500.42966971,0.00031273,5]
[391612015,1760706641599,-500.0,0.00031273,5]
[391612017,1760706641609,-500.0,0.00031273,5]
[391612019,1760706641619,-500.0,0.00031273,5]
[391612021,1760706641628,-500.0,0.00031273,5]
[391612023,1760706641638,-500.0,0.00031273,5]
[391612025,1760706641648,-500.0,0.00031273,5]
[391612027,1760706641658,-150.97,0.00031328,15]
[391612029,1760706641667,-500.0,0.00031373,5]
[391612031,1760706641676,-500.0,0.00031373,5]
[391612033,1760706641686,-500.0,0.00031373,4]
[391612035,1760706641695,-500.0,0.00031373,5]
[391612036,1760706641704,-500.0,0.00031373,5]
[391612038,1760706641713,-500.0,0.00031373,5]
[391612040,1760706641723,-500.0,0.00031373,5]
[391612042,1760706641732,-507.14701524,0.00031373,5]
[391612044,1760706641741,-500.0,0.00031373,5]
[391612046,1760706641751,-516.72171874,0.00031386,2]
[391612048,1760706641760,-500.0,0.00031386,2]
[391612050,1760706641769,-150.97,0.00031428,15]
[391612052,1760706641778,-281.19989303,0.00031446,5]
[391612054,1760706641788,-1000.0,0.00031446,2]
[391612056,1760706641797,-500.0,0.00031446,5]
[391612058,1760706641806,-500.0,0.00031446,5]
[391612060,1760706641815,-500.0,0.00031446,5]
[391612062,1760706641824,-500.0,0.00031446,5]
[391612064,1760706641833,-1250.0,0.00031446,5]
[391612066,1760706641842,-1656.49,0.00031447,2]
[391612068,1760706641852,-500.0,0.00031473,5]
[391612070,1760706641861,-500.0,0.00031473,5]
[391612072,1760706641870,-500.0,0.00031473,5]
[391612074,1760706641879,-500.0,0.00031473,5]
[391612076,1760706641889,-500.0,0.00031473,5]
[391612078,1760706641898,-500.0,0.00031473,5]
[391612080,1760706641907,-500.0,0.00031473,5]
[391612082,1760706641917,-500.0,0.00031473,5]
[391612084,1760706641930,-500.0,0.00031473,5]
[391612086,1760706641940,-500.0,0.00031473,5]
[391612088,1760706641949,-419.91171798,0.00031473,5]
[391612090,1760706641958,-500.0,0.00031473,5]
[391612092,1760706641969,-76053.4308292,0.00031496,2]
[391612094,1760706641978,-500.0,0.00031505,5]
[391612095,1760706641987,-893.61,0.00031506,5]
[391612098,1760706641997,-6153.04,0.00031506,5]
[391612099,1760706642007,-523.99,0.00031506,5]
[391612101,1760706642022,-500.0,0.00031506,5]
[391612103,1760706642036,-500.0,0.00031506,5]
[391612105,1760706642046,-833.98,0.00031506,5]
[391612107,1760706642056,-833.33,0.00031506,5]
[391612109,1760706642065,-656.54,0.00031506,5]
[391612111,1760706642075,-500.0,0.00031506,5]
[391612113,1760706642084,-500.0,0.00031506,5]
[391612124,1760706642184,-500.0,0.00031506,5]
[391612126,1760706642194,-623.69,0.00031506,5]
[391612128,1760706642204,-500.0,0.00031506,5]
[391612130,1760706642214,-500.0,0.00031506,5]
[391612132,1760706642223,-500.0,0.00031506,5]
[391612134,1760706642232,-500.0,0.00031506,2]
[391612136,1760706642243,-908.48,0.00031506,5]
[391612138,1760706642253,-500.0,0.00031506,5]
[391612140,1760706642262,-665.48,0.00031506,5]
[391612142,1760706642272,-500.0,0.00031506,5]
[391612144,1760706642281,-1068.82,0.00031506,5]
[391612146,1760706642290,-500.0,0.00031506,5]
[391612148,1760706642300,-500.0,0.00031506,5]
[391612150,1760706642309,-500.0,0.00031506,5]
[391612152,1760706642318,-2609.4,0.00031506,5]
[391612154,1760706642327,-500.0,0.00031506,5]
[391612156,1760706642337,-500.0,0.00031506,5]
[391612158,1760706642346,-500.0,0.00031506,5]
[391612160,1760706642355,-530.48,0.00031506,5]
[391612162,1760706642364,-500.0,0.00031506,5]
[391612163,1760706642374,-673.78,0.00031506,5]
[391612165,1760706642383,-500.0,0.00031506,5]
[391612167,1760706642392,-586.61,0.00031506,5]
[391612169,1760706642401,-500.0,0.00031506,5]
[391612171,1760706642411,-500.0,0.00031506,5]
[391612173,1760706642420,-1000.0,0.00031506,2]
[391612175,1760706642430,-6178.77,0.00031506,5]
[391612177,1760706642439,-514.33931203,0.00031506,5]
[391612179,1760706642448,-500.0,0.00031506,5]
[391612182,1760706642459,-500.0,0.00031506,5]
[391612183,1760706642469,-500.0,0.00031506,5]
[391612185,1760706642478,-1018.98,0.00031506,5]
[391612187,1760706642487,-500.0,0.00031506,5]
[391612189,1760706642496,-737.07,0.00031506,5]
[391612191,1760706642505,-745.77,0.00031506,5]
[391612193,1760706642515,-500.0,0.00031506,5]
[391612195,1760706642524,-500.0,0.00031506,5]
[391612197,1760706642534,-500.0,0.00031506,3]
[391612199,1760706642543,-150.97,0.00031528,15]
[391612201,1760706642552,-260.0,0.00031529,2]
[391612203,1760706642562,-150.97,0.00031628,15]
[391612205,1760706642571,-1007.28731099,0.0003172,2]
[391612207,1760706642580,-500.0,0.0003172,5]
[391612209,1760706642590,-500.0,0.0003172,5]
[391612211,1760706642599,-500.0,0.0003172,5]
[391612212,1760706642608,-500.0,0.0003172,5]
[391612213,1760706642617,-1250.0,0.0003172,5]
[391612214,1760706642626,-150.97,0.00031728,15]
[391612215,1760706642636,-2839.32192169,0.00031741,2]
[391612216,1760706642645,-491.72776646,0.00031779,5]
[391612217,1760706642654,-893.61,0.0003178,5]
[391612218,1760706642664,-6153.04,0.0003178,5]
[391612220,1760706642674,-523.99,0.0003178,5]
[391612222,1760706642683,-500.0,0.0003178,5]
[391612224,1760706642692,-500.0,0.0003178,5]
[391612226,1760706642703,-833.98,0.0003178,5]
[391612228,1760706642712,-833.33,0.0003178,5]
[391612230,1760706642722,-656.54,0.0003178,5]
[391612232,1760706642731,-500.0,0.0003178,5]
[391612234,1760706642741,-500.0,0.0003178,5]
[391612236,1760706642750,-500.0,0.0003178,5]
[391612238,1760706642761,-623.69,0.0003178,5]
[391612240,1760706642770,-500.0,0.0003178,5]
[391612242,1760706642779,-500.0,0.0003178,5]
[391612244,1760706642788,-500.0,0.0003178,5]
[391612246,1760706642797,-500.0,0.0003178,2]
[391612248,1760706642807,-908.48,0.0003178,5]
[391612250,1760706642816,-500.0,0.0003178,5]
[391612252,1760706642826,-665.48,0.0003178,5]
[391612254,1760706642835,-500.0,0.0003178,5]
[391612256,1760706642844,-1068.82,0.0003178,5]
[391612258,1760706642855,-500.0,0.0003178,5]
[391612260,1760706642864,-500.0,0.0003178,5]
[391612262,1760706642873,-500.0,0.0003178,5]
[391612264,1760706642883,-2609.4,0.0003178,5]
[391612266,1760706642892,-500.0,0.0003178,5]
[391612268,1760706642901,-500.0,0.0003178,5]
[391612270,1760706642911,-500.0,0.0003178,5]
[391612272,1760706642926,-530.48,0.0003178,5]
[391612274,1760706642935,-500.0,0.0003178,5]
[391612276,1760706642945,-673.78,0.0003178,5]
[391612278,1760706642954,-151.0,0.0003178,30]
[391612280,1760706642965,-500.0,0.0003178,5]
[391612282,1760706642975,-586.61,0.0003178,5]
[391612284,1760706642984,-500.0,0.0003178,5]
[391612286,1760706642996,-500.0,0.0003178,5]
[391612288,1760706643006,-1000.0,0.0003178,2]
[391612290,1760706643016,-6178.77,0.0003178,5]
[391612292,1760706643025,-151.0,0.0003178,30]
[391612294,1760706643035,-151.0,0.0003178,30]
[391612296,1760706643045,-500.0,0.0003178,5]
[391612298,1760706643055,-500.0,0.0003178,5]
[391612300,1760706643065,-500.0,0.0003178,5]
[391612302,1760706643074,-1018.98,0.0003178,5]
[391612304,1760706643084,-500.0,0.0003178,5]
[391612306,1760706643094,-737.07,0.0003178,5]
[391612308,1760706643105,-745.77,0.0003178,5]
[391612310,1760706643114,-500.0,0.0003178,5]
[391612312,1760706643123,-500.0,0.0003178,5]
[391612314,1760706643133,-500.0,0.0003178,3]
[391612316,1760706643143,-501.2396458,0.00031821,5]
[391612319,1760706643152,-1000.0,0.00031821,5]
[391612322,1760706643161,-1000.0,0.00031821,5]
[391612325,1760706643172,-500.0,0.00031821,5]
[391612327,1760706643181,-1000.0,0.00031821,5]
[391612329,1760706643191,-1000.0,0.00031821,5]
[391612331,1760706643201,-150.97,0.00031828,15]
[391612334,1760706643212,-1000.0,0.00031921,5]
[391612337,1760706643223,-501.56547197,0.00031921,5]
[391612340,1760706643232,-1000.0,0.00031921,5]
[391612342,1760706643242,-1000.69222835,0.00031921,4]
[391612344,1760706643251,-1000.0,0.00031921,5]
[391612346,1760706643260,-235.16621169,0.00031921,5]
[391612348,1760706643270,-173.84620991,0.00031921,5]